[Event "Early-Titled-Tuesday-Blitz-March-19-2024"]
[Site "Chess.com"]
[Date "2024.03.19"]
[Round "3"]
[White "Barbix1"]
[Black "Herzog2012"]
[Result "0-1"]
[WhiteElo "2280"]
[BlackElo "2521"]
[TimeControl "180+1"]
[EndTime "8:28:43 PDT"]
[Termination "Herzog2012 won by resignation"]

1. d4 {[%clk 0:02:59.9]} 1... Nf6 {[%clk 0:02:58.2]} 2. c4 {[%clk 0:02:59.1]}
2... e6 {[%clk 0:02:57.8]} 3. Nf3 {[%clk 0:02:55.7]} 3... b6 {[%clk 0:02:55.9]}
4. g3 {[%clk 0:02:43.5]} 4... Ba6 {[%clk 0:02:54.8]} 5. b3 {[%clk 0:02:20.3]}
5... b5 {[%clk 0:02:51.5]} 6. cxb5 {[%clk 0:02:00.2]} 6... Bxb5 {[%clk
0:02:52.4]} 7. Bg2 {[%clk 0:02:00.6]} 7... Bb4+ {[%clk 0:02:49.3]} 8. Bd2 {[%clk
0:01:57.3]} 8... a5 {[%clk 0:02:48.5]} 9. O-O {[%clk 0:01:55.8]} 9... O-O {[%clk
0:02:47.7]} 10. Nc3 {[%clk 0:01:50.9]} 10... Ba6 {[%clk 0:02:44.3]} 11. Re1
{[%clk 0:01:45.2]} 11... d5 {[%clk 0:02:33.8]} 12. Na4 {[%clk 0:01:37.4]} 12...
Bb5 {[%clk 0:02:27.4]} 13. Nb2 {[%clk 0:01:16.4]} 13... Ne4 {[%clk 0:02:19.3]}
14. a3 {[%clk 0:00:42.9]} 14... Bxd2 {[%clk 0:02:10.3]} 15. Nxd2 {[%clk
0:00:43.8]} 15... Nc3 {[%clk 0:02:10.1]} 16. Qc2 {[%clk 0:00:24]} 16... Nxe2+
{[%clk 0:02:03.3]} 17. Kh1 {[%clk 0:00:23.8]} 17... Nxd4 {[%clk 0:01:51]} 18.
Qc5 {[%clk 0:00:20.7]} 18... Nbc6 {[%clk 0:01:46.7]} 19. Nf3 {[%clk 0:00:14.2]}
19... Nxf3 {[%clk 0:01:35.6]} 20. Bxf3 {[%clk 0:00:15.1]} 20... Na7 {[%clk
0:01:34.9]} 21. a4 {[%clk 0:00:10.6]} 21... Bd7 {[%clk 0:01:26.4]} 22. Rac1
{[%clk 0:00:10.1]} 22... Nc6 {[%clk 0:01:25.2]} 23. Nd3 {[%clk 0:00:08.3]} 23...
Rb8 {[%clk 0:01:25]} 24. Rc3 {[%clk 0:00:06.8]} 24... Qf6 {[%clk 0:01:22.6]} 25.
Nf4 {[%clk 0:00:04.5]} 25... e5 {[%clk 0:01:19.7]} 26. Nxd5 {[%clk 0:00:04.5]}
26... Qd6 {[%clk 0:01:18.1]} 27. Qxd6 {[%clk 0:00:04.3]} 27... cxd6 {[%clk
0:01:19]} 28. Rxc6 {[%clk 0:00:04.4]} 28... Bxc6 {[%clk 0:01:18.1]} 29. Ne7+
{[%clk 0:00:05]} 29... Kh8 {[%clk 0:01:17.8]} 30. Nxc6 {[%clk 0:00:05.2]} 30...
Rxb3 {[%clk 0:01:18]} 31. Bd5 {[%clk 0:00:03.9]} 31... Rd3 {[%clk 0:01:17.2]}
32. Be4 {[%clk 0:00:03.2]} 32... Ra3 {[%clk 0:01:16.7]} 33. Nxa5 {[%clk
0:00:03.1]} 33... Rxa4 {[%clk 0:01:17]} 34. Nc6 {[%clk 0:00:03.2]} 34... Ra2
{[%clk 0:01:09.2]} 35. Kg2 {[%clk 0:00:03.5]} 35... Rd2 {[%clk 0:01:09.8]} 36.
Rc1 {[%clk 0:00:02.4]} 36... f5 {[%clk 0:01:05.6]} 37. Bf3 {[%clk 0:00:02]}
37... e4 {[%clk 0:01:01.2]} 38. Bd1 {[%clk 0:00:02.7]} 38... e3 {[%clk
0:00:58.9]} 39. Bb3 {[%clk 0:00:02.7]} 39... Rxf2+ {[%clk 0:00:57.8]} 40. Kg1
{[%clk 0:00:03.1]} 40... g5 {[%clk 0:00:58]} 41. h4 {[%clk 0:00:02.4]} 41... f4
{[%clk 0:00:58.1]} 42. g4 {[%clk 0:00:02.4]} 42... f3 {[%clk 0:00:58]} 43. Rc3
{[%clk 0:00:02.2]} 43... Rg2+ {[%clk 0:00:57.7]} 44. Kh1 {[%clk 0:00:02]} 44...
e2 {[%clk 0:00:58.6]} 45. Rxf3 {[%clk 0:00:02.2]} 45... e1=Q+ {[%clk 0:00:57.7]}
0-1

[Event "Early-Titled-Tuesday-Blitz-March-19-2024"]
[Site "Chess.com"]
[Date "2024.03.19"]
[Round "3"]
[White "AccioChess"]
[Black "AlanZhang"]
[Result "1-0"]
[WhiteElo "2442"]
[BlackElo "2231"]
[TimeControl "180+1"]
[EndTime "8:28:45 PDT"]
[Termination "AccioChess won by resignation"]

1. e4 {[%clk 0:02:53.8]} 1... e5 {[%clk 0:02:58.1]} 2. Nf3 {[%clk 0:02:52.9]}
2... Nc6 {[%clk 0:02:57.4]} 3. Bb5 {[%clk 0:02:51.3]} 3... a6 {[%clk 0:02:57.6]}
4. Ba4 {[%clk 0:02:48.4]} 4... Nf6 {[%clk 0:02:57.7]} 5. O-O {[%clk 0:02:48.7]}
5... Be7 {[%clk 0:02:57.7]} 6. Re1 {[%clk 0:02:48.8]} 6... b5 {[%clk 0:02:57.3]}
7. Bb3 {[%clk 0:02:49.2]} 7... d6 {[%clk 0:02:57.2]} 8. c3 {[%clk 0:02:49.7]}
8... O-O {[%clk 0:02:57.5]} 9. h3 {[%clk 0:02:50.2]} 9... Na5 {[%clk 0:02:58.1]}
10. Bc2 {[%clk 0:02:50.2]} 10... c5 {[%clk 0:02:58.8]} 11. d4 {[%clk 0:02:50.7]}
11... cxd4 {[%clk 0:02:59.7]} 12. cxd4 {[%clk 0:02:50.9]} 12... Qc7 {[%clk
0:03:00.4]} 13. Nc3 {[%clk 0:02:50.9]} 13... Be6 {[%clk 0:02:57.4]} 14. Bg5
{[%clk 0:02:45.8]} 14... h6 {[%clk 0:02:54.8]} 15. Bxf6 {[%clk 0:02:44.6]} 15...
Bxf6 {[%clk 0:02:55.7]} 16. dxe5 {[%clk 0:02:34.3]} 16... dxe5 {[%clk
0:02:52.2]} 17. Rc1 {[%clk 0:02:34.2]} 17... Rfd8 {[%clk 0:02:45.9]} 18. Nd5
{[%clk 0:02:33]} 18... Bxd5 {[%clk 0:02:30.6]} 19. exd5 {[%clk 0:02:33.9]} 19...
Qd6 {[%clk 0:02:30.8]} 20. b3 {[%clk 0:02:28.4]} 20... Rac8 {[%clk 0:02:24.8]}
21. Be4 {[%clk 0:02:10.8]} 21... Nb7 {[%clk 0:02:10.3]} 22. Rxc8 {[%clk
0:01:16]} 22... Rxc8 {[%clk 0:02:11.2]} 23. Nd2 {[%clk 0:01:03.6]} 23... Nc5
{[%clk 0:01:44.3]} 24. Qg4 {[%clk 0:01:02.2]} 24... Rd8 {[%clk 0:01:28.5]} 25.
b4 {[%clk 0:01:00.7]} 25... Nd7 {[%clk 0:00:57.6]} 26. Rc1 {[%clk 0:00:57.7]}
26... Kf8 {[%clk 0:00:48.9]} 27. a3 {[%clk 0:00:54.9]} 27... Nb6 {[%clk
0:00:17.6]} 28. Rc6 {[%clk 0:00:53.5]} 28... Qb8 {[%clk 0:00:18.3]} 29. Nb3
{[%clk 0:00:35.7]} 29... Rd6 {[%clk 0:00:15.5]} 30. Nc5 {[%clk 0:00:34.8]} 30...
Ke7 {[%clk 0:00:14.5]} 31. Nxa6 {[%clk 0:00:28.7]} 31... Qd8 {[%clk 0:00:14.7]}
32. Rc7+ {[%clk 0:00:22.8]} 32... Kf8 {[%clk 0:00:14.7]} 33. g3 {[%clk
0:00:11.4]} 33... Nc4 {[%clk 0:00:10.7]} 34. Rc8 {[%clk 0:00:11]} 34... Rxa6
{[%clk 0:00:03.1]} 35. Rxd8+ {[%clk 0:00:11]} 35... Bxd8 {[%clk 0:00:03.8]} 36.
Qc8 {[%clk 0:00:10.8]} 1-0

[Event "Early-Titled-Tuesday-Blitz-March-19-2024"]
[Site "Chess.com"]
[Date "2024.03.19"]
[Round "3"]
[White "atalz0"]
[Black "Carlos-Godoy"]
[Result "1-0"]
[WhiteElo "2374"]
[BlackElo "2082"]
[TimeControl "180+1"]
[EndTime "8:28:46 PDT"]
[Termination "atalz0 won on time"]

1. d4 {[%clk 0:03:00.9]} 1... Nf6 {[%clk 0:02:58.6]} 2. c4 {[%clk 0:03:01]} 2...
c5 {[%clk 0:02:57.8]} 3. d5 {[%clk 0:03:01]} 3... b5 {[%clk 0:02:58]} 4. cxb5
{[%clk 0:03:01.5]} 4... a6 {[%clk 0:02:57.6]} 5. f3 {[%clk 0:03:01.8]} 5... e6
{[%clk 0:02:55.9]} 6. e4 {[%clk 0:03:01.6]} 6... exd5 {[%clk 0:02:55.9]} 7. exd5
{[%clk 0:02:59.8]} 7... Bd6 {[%clk 0:02:46.1]} 8. Nc3 {[%clk 0:02:52.8]} 8...
O-O {[%clk 0:02:41.9]} 9. Bc4 {[%clk 0:02:52.9]} 9... axb5 {[%clk 0:02:40.5]}
10. Nxb5 {[%clk 0:02:47.6]} 10... Qb6 {[%clk 0:02:28.9]} 11. Ne2 {[%clk
0:02:41.4]} 11... Ba6 {[%clk 0:02:28.8]} 12. a4 {[%clk 0:02:28.3]} 12... Bxb5
{[%clk 0:02:28.5]} 13. Bxb5 {[%clk 0:02:28.5]} 13... Na6 {[%clk 0:02:28.7]} 14.
O-O {[%clk 0:02:22.5]} 14... Nb4 {[%clk 0:02:29.2]} 15. Nc3 {[%clk 0:02:17.5]}
15... c4+ {[%clk 0:02:19.6]} 16. Kh1 {[%clk 0:02:16.6]} 16... Qc5 {[%clk
0:02:20.2]} 17. Bg5 {[%clk 0:01:56.7]} 17... Nfxd5 {[%clk 0:02:17.2]} 18. Ne4
{[%clk 0:01:56.8]} 18... Qc7 {[%clk 0:02:13.5]} 19. Nxd6 {[%clk 0:01:51.4]}
19... Qxd6 {[%clk 0:02:13.2]} 20. Bxc4 {[%clk 0:01:46.6]} 20... Qe5 {[%clk
0:02:01.7]} 21. Qd2 {[%clk 0:01:36.3]} 21... Rac8 {[%clk 0:01:38.4]} 22. Rfe1
{[%clk 0:01:18]} 22... Qf5 {[%clk 0:01:26.2]} 23. b3 {[%clk 0:01:10.6]} 23...
Rfe8 {[%clk 0:01:01.8]} 24. Rac1 {[%clk 0:00:49.9]} 24... Rxe1+ {[%clk
0:00:56.5]} 25. Rxe1 {[%clk 0:00:50.8]} 25... Nc2 {[%clk 0:00:47.9]} 26. Rd1
{[%clk 0:00:27.9]} 26... Ndb4 {[%clk 0:00:21.8]} 27. Qxd7 {[%clk 0:00:23.3]}
27... Qxd7 {[%clk 0:00:18.6]} 28. Rxd7 {[%clk 0:00:24.2]} 28... h6 {[%clk
0:00:15.2]} 29. Bd2 {[%clk 0:00:17.3]} 29... Rc5 {[%clk 0:00:09.4]} 30. Bxf7+
{[%clk 0:00:13.7]} 30... Kh7 {[%clk 0:00:08]} 31. Bc4 {[%clk 0:00:13.5]} 31...
Re5 {[%clk 0:00:05.3]} 32. h3 {[%clk 0:00:13.2]} 32... Nc6 {[%clk 0:00:01.1]}
33. Bc3 {[%clk 0:00:12.5]} 1-0

[Event "Early-Titled-Tuesday-Blitz-March-19-2024"]
[Site "Chess.com"]
[Date "2024.03.19"]
[Round "3"]
[White "MightyMike_009"]
[Black "sorch29"]
[Result "1-0"]
[WhiteElo "2721"]
[BlackElo "2492"]
[TimeControl "180+1"]
[EndTime "8:28:47 PDT"]
[Termination "MightyMike_009 won by resignation"]

1. d4 {[%clk 0:02:59.9]} 1... d5 {[%clk 0:02:56.2]} 2. c4 {[%clk 0:03:00.1]}
2... dxc4 {[%clk 0:02:54.8]} 3. Nf3 {[%clk 0:03:00.1]} 3... Nf6 {[%clk
0:02:55.1]} 4. e3 {[%clk 0:03:00.3]} 4... e6 {[%clk 0:02:55]} 5. Bxc4 {[%clk
0:03:00.6]} 5... c5 {[%clk 0:02:55.5]} 6. O-O {[%clk 0:03:00.2]} 6... a6 {[%clk
0:02:55.4]} 7. Bb3 {[%clk 0:03:00.5]} 7... b5 {[%clk 0:02:26.6]} 8. a4 {[%clk
0:03:00.2]} 8... c4 {[%clk 0:02:19.7]} 9. Bc2 {[%clk 0:02:35.6]} 9... Bb7 {[%clk
0:02:19.7]} 10. b3 {[%clk 0:02:17.2]} 10... cxb3 {[%clk 0:01:47.6]} 11. Bxb3
{[%clk 0:02:18.1]} 11... b4 {[%clk 0:01:29.8]} 12. a5 {[%clk 0:01:48.6]} 12...
Be7 {[%clk 0:01:24.5]} 13. Nbd2 {[%clk 0:01:48.5]} 13... O-O {[%clk 0:01:09.8]}
14. Bb2 {[%clk 0:01:48.3]} 14... Bd5 {[%clk 0:00:45.3]} 15. Nc4 {[%clk
0:01:30.7]} 15... Nbd7 {[%clk 0:00:21.9]} 16. Nfe5 {[%clk 0:01:28.8]} 16... Qc7
{[%clk 0:00:16.6]} 17. Rc1 {[%clk 0:01:25.3]} 17... Qb7 {[%clk 0:00:15.9]} 18.
f3 {[%clk 0:01:21.3]} 18... Nxe5 {[%clk 0:00:12.3]} 19. dxe5 {[%clk 0:01:02.7]}
19... Nd7 {[%clk 0:00:11.7]} 20. Nd6 {[%clk 0:01:00.6]} 20... Bxd6 {[%clk
0:00:11.6]} 21. Bxd5 {[%clk 0:00:52.6]} 21... exd5 {[%clk 0:00:08.8]} 22. exd6
{[%clk 0:00:52.1]} 22... Rac8 {[%clk 0:00:09.1]} 23. Qd4 {[%clk 0:00:49.3]}
23... Nf6 {[%clk 0:00:06.2]} 24. Qf4 {[%clk 0:00:43.6]} 24... Nd7 {[%clk
0:00:02.3]} 25. Rc7 {[%clk 0:00:38.7]} 25... Rxc7 {[%clk 0:00:02]} 26. dxc7
{[%clk 0:00:39.1]} 26... Rc8 {[%clk 0:00:02.9]} 27. Qg4 {[%clk 0:00:38.2]} 27...
f6 {[%clk 0:00:01.6]} 28. Qe6+ {[%clk 0:00:34.2]} 28... Kh8 {[%clk 0:00:01.4]}
29. Qxd7 {[%clk 0:00:34.5]} 29... Qxc7 {[%clk 0:00:02]} 30. Qxc7 {[%clk
0:00:33.3]} 30... Rxc7 {[%clk 0:00:02.9]} 31. Rc1 {[%clk 0:00:33.7]} 31... Rc4
{[%clk 0:00:02.7]} 32. e4 {[%clk 0:00:32]} 32... Kg8 {[%clk 0:00:02.9]} 33. exd5
{[%clk 0:00:32.1]} 33... Rxc1+ {[%clk 0:00:03.2]} 34. Bxc1 {[%clk 0:00:33]}
34... Kf8 {[%clk 0:00:03.9]} 35. Be3 {[%clk 0:00:33.8]} 35... b3 {[%clk
0:00:03.6]} 36. Bc5+ {[%clk 0:00:31.8]} 36... Ke8 {[%clk 0:00:03.8]} 37. Ba3
{[%clk 0:00:32.6]} 37... Kd7 {[%clk 0:00:04.5]} 38. Kf2 {[%clk 0:00:33.2]} 38...
b2 {[%clk 0:00:04.8]} 39. Bxb2 {[%clk 0:00:33.8]} 39... Kd6 {[%clk 0:00:05.5]}
40. Ba3+ {[%clk 0:00:32.8]} 40... Kxd5 {[%clk 0:00:06.4]} 41. Bf8 {[%clk
0:00:33.6]} 41... g6 {[%clk 0:00:06.9]} 42. Bg7 {[%clk 0:00:33.6]} 42... f5
{[%clk 0:00:07.8]} 43. g3 {[%clk 0:00:33.6]} 43... Kc4 {[%clk 0:00:08.7]} 44.
Ke3 {[%clk 0:00:34]} 1-0

[Event "Early-Titled-Tuesday-Blitz-March-19-2024"]
[Site "Chess.com"]
[Date "2024.03.19"]
[Round "3"]
[White "MarcoRiehle"]
[Black "mitrabhaa"]
[Result "0-1"]
[WhiteElo "2808"]
[BlackElo "3080"]
[TimeControl "180+1"]
[EndTime "8:28:51 PDT"]
[Termination "mitrabhaa won by checkmate"]

1. e4 {[%clk 0:03:00.9]} 1... c6 {[%clk 0:03:00.2]} 2. c4 {[%clk 0:02:58.8]}
2... d5 {[%clk 0:02:57.1]} 3. exd5 {[%clk 0:02:56.9]} 3... cxd5 {[%clk 0:02:58]}
4. d4 {[%clk 0:02:57.5]} 4... Nf6 {[%clk 0:02:58.1]} 5. Nc3 {[%clk 0:02:57.6]}
5... g6 {[%clk 0:02:58.2]} 6. Nf3 {[%clk 0:02:55.4]} 6... Bg7 {[%clk 0:02:58.2]}
7. cxd5 {[%clk 0:02:55.2]} 7... Nxd5 {[%clk 0:02:57.9]} 8. Bc4 {[%clk
0:02:54.6]} 8... Nb6 {[%clk 0:02:55.6]} 9. Bb3 {[%clk 0:02:54.3]} 9... O-O
{[%clk 0:02:55.7]} 10. h3 {[%clk 0:02:53.5]} 10... Nc6 {[%clk 0:02:55.3]} 11.
Be3 {[%clk 0:02:53.5]} 11... Na5 {[%clk 0:02:54.3]} 12. Bc2 {[%clk 0:02:50]}
12... Nac4 {[%clk 0:02:54.2]} 13. Rb1 {[%clk 0:02:49.7]} 13... Nxe3 {[%clk
0:02:52.8]} 14. fxe3 {[%clk 0:02:49.6]} 14... e5 {[%clk 0:02:47.7]} 15. O-O
{[%clk 0:02:41.8]} 15... exd4 {[%clk 0:02:46.4]} 16. exd4 {[%clk 0:02:42.7]}
16... Be6 {[%clk 0:02:40.3]} 17. Be4 {[%clk 0:02:31]} 17... Nd5 {[%clk
0:02:25.1]} 18. Qd2 {[%clk 0:02:21.2]} 18... h6 {[%clk 0:02:16.3]} 19. Ne5
{[%clk 0:02:14.6]} 19... Nxc3 {[%clk 0:02:15]} 20. Qxc3 {[%clk 0:02:14.9]} 20...
Rc8 {[%clk 0:02:14.6]} 21. Qe3 {[%clk 0:02:09.8]} 21... Qb6 {[%clk 0:02:14.4]}
22. Qf2 {[%clk 0:01:47.1]} 22... Rfd8 {[%clk 0:02:05.9]} 23. Rbd1 {[%clk
0:01:39.1]} 23... Rc7 {[%clk 0:01:43.7]} 24. b3 {[%clk 0:01:34.1]} 24... a5
{[%clk 0:01:28.5]} 25. Nf3 {[%clk 0:01:23.2]} 25... Rcd7 {[%clk 0:01:22.5]} 26.
Rd2 {[%clk 0:01:21]} 26... Bd5 {[%clk 0:00:57.4]} 27. Bxd5 {[%clk 0:01:18.3]}
27... Rxd5 {[%clk 0:00:58.3]} 28. Rfd1 {[%clk 0:01:09.9]} 28... Qd6 {[%clk
0:00:57.9]} 29. Qe3 {[%clk 0:01:07.3]} 29... b6 {[%clk 0:00:57.2]} 30. Qf2
{[%clk 0:01:07.5]} 30... Bf6 {[%clk 0:00:56.1]} 31. Qe3 {[%clk 0:01:06.3]} 31...
Kg7 {[%clk 0:00:55.9]} 32. Qf2 {[%clk 0:01:06.4]} 32... Re8 {[%clk 0:00:55.8]}
33. Rf1 {[%clk 0:01:05.8]} 33... Rf5 {[%clk 0:00:50.3]} 34. Re1 {[%clk 0:01:01]}
34... Rd8 {[%clk 0:00:48.4]} 35. Red1 {[%clk 0:00:58.4]} 35... Qd5 {[%clk
0:00:46.9]} 36. Qe2 {[%clk 0:00:55.6]} 36... h5 {[%clk 0:00:45.5]} 37. Qe3
{[%clk 0:00:55]} 37... Rd6 {[%clk 0:00:43.8]} 38. Rc2 {[%clk 0:00:53.5]} 38...
Re6 {[%clk 0:00:40.6]} 39. Qf2 {[%clk 0:00:52.5]} 39... Re4 {[%clk 0:00:37.8]}
40. Rcd2 {[%clk 0:00:50.9]} 40... Ref4 {[%clk 0:00:33.4]} 41. Rd3 {[%clk
0:00:47.5]} 41... Re4 {[%clk 0:00:28.5]} 42. R3d2 {[%clk 0:00:47.1]} 42... g5
{[%clk 0:00:24.6]} 43. Qg3 {[%clk 0:00:37.4]} 43... g4 {[%clk 0:00:19.8]} 44.
hxg4 {[%clk 0:00:37.7]} 44... Rxg4 {[%clk 0:00:19.3]} 45. Qxg4+ {[%clk
0:00:34.5]} 45... hxg4 {[%clk 0:00:19.2]} 46. Ne5 {[%clk 0:00:35.4]} 46... Bxe5
{[%clk 0:00:18.1]} 47. dxe5 {[%clk 0:00:36.3]} 47... Qc5+ {[%clk 0:00:18.3]} 48.
Kh2 {[%clk 0:00:35.8]} 48... Qxe5+ {[%clk 0:00:18.2]} 49. Kg1 {[%clk 0:00:35.7]}
49... Qe3+ {[%clk 0:00:18]} 50. Kh2 {[%clk 0:00:35.1]} 50... Rh5# {[%clk
0:00:18.3]} 0-1

[Event "Early-Titled-Tuesday-Blitz-March-19-2024"]
[Site "Chess.com"]
[Date "2024.03.19"]
[Round "3"]
[White "Chessbard1972"]
[Black "maurovargas01"]
[Result "1-0"]
[WhiteElo "2337"]
[BlackElo "1828"]
[TimeControl "180+1"]
[EndTime "8:28:52 PDT"]
[Termination "Chessbard1972 won on time"]

1. d4 {[%clk 0:02:55]} 1... d5 {[%clk 0:02:56.1]} 2. c4 {[%clk 0:02:54.5]} 2...
c6 {[%clk 0:02:52.9]} 3. Nf3 {[%clk 0:02:54]} 3... e6 {[%clk 0:02:52.7]} 4. Qc2
{[%clk 0:02:53]} 4... Nf6 {[%clk 0:02:51.5]} 5. Nbd2 {[%clk 0:02:49.6]} 5... Bd6
{[%clk 0:02:51]} 6. g3 {[%clk 0:02:49.2]} 6... Bc7 {[%clk 0:02:48.5]} 7. Bg2
{[%clk 0:02:48.2]} 7... Nbd7 {[%clk 0:02:48.5]} 8. O-O {[%clk 0:02:47.8]} 8...
O-O {[%clk 0:02:40.9]} 9. b3 {[%clk 0:02:48.1]} 9... dxc4 {[%clk 0:02:40]} 10.
Nxc4 {[%clk 0:02:41.5]} 10... Nb6 {[%clk 0:02:35.6]} 11. Ba3 {[%clk 0:02:39.9]}
11... Re8 {[%clk 0:02:28.5]} 12. Nce5 {[%clk 0:02:39.7]} 12... a5 {[%clk
0:02:21.9]} 13. Rfd1 {[%clk 0:02:29.1]} 13... Nbd5 {[%clk 0:02:20.8]} 14. e4
{[%clk 0:02:21.8]} 14... Nb4 {[%clk 0:02:19.5]} 15. Qe2 {[%clk 0:02:21.5]} 15...
b6 {[%clk 0:02:05.2]} 16. Bxb4 {[%clk 0:02:09]} 16... axb4 {[%clk 0:02:01.8]}
17. Nxc6 {[%clk 0:02:08.4]} 17... Qd7 {[%clk 0:01:57.8]} 18. Nxb4 {[%clk
0:02:04.4]} 18... Bd6 {[%clk 0:01:40.4]} 19. Nd3 {[%clk 0:01:48.8]} 19... Ba6
{[%clk 0:01:38.7]} 20. e5 {[%clk 0:01:45.9]} 20... Nd5 {[%clk 0:01:26.5]} 21.
exd6 {[%clk 0:01:45.6]} 21... Nc3 {[%clk 0:01:25.4]} 22. Qd2 {[%clk 0:01:40.1]}
22... Nxd1 {[%clk 0:01:24.2]} 23. Rxd1 {[%clk 0:01:40.2]} 23... Qxd6 {[%clk
0:01:20.1]} 24. Nfe5 {[%clk 0:01:31.2]} 24... Rac8 {[%clk 0:01:19]} 25. Nb4
{[%clk 0:01:26.9]} 25... Be2 {[%clk 0:00:53]} 26. Re1 {[%clk 0:01:18.1]} 26...
Bh5 {[%clk 0:00:51.5]} 27. Nec6 {[%clk 0:01:06.7]} 27... f6 {[%clk 0:00:43]} 28.
Qe3 {[%clk 0:00:54.5]} 28... e5 {[%clk 0:00:35.9]} 29. dxe5 {[%clk 0:00:49.9]}
29... fxe5 {[%clk 0:00:31.1]} 30. Bd5+ {[%clk 0:00:47.8]} 30... Kh8 {[%clk
0:00:29.9]} 31. a3 {[%clk 0:00:40.6]} 31... Bg6 {[%clk 0:00:25.5]} 32. Qxb6
{[%clk 0:00:38.9]} 32... e4 {[%clk 0:00:20.1]} 33. Qd4 {[%clk 0:00:35.6]} 33...
Rc7 {[%clk 0:00:10.9]} 34. Rd1 {[%clk 0:00:29.9]} 34... Rec8 {[%clk 0:00:09]}
35. Bxe4 {[%clk 0:00:26.5]} 35... Qe7 {[%clk 0:00:03.6]} 36. Nxe7 {[%clk
0:00:25.1]} 36... Rxe7 {[%clk 0:00:02.4]} 37. Bxg6 {[%clk 0:00:24.2]} 1-0

[Event "Early-Titled-Tuesday-Blitz-March-19-2024"]
[Site "Chess.com"]
[Date "2024.03.19"]
[Round "3"]
[White "picturesquecheck"]
[Black "aljado"]
[Result "1-0"]
[WhiteElo "2437"]
[BlackElo "2087"]
[TimeControl "180+1"]
[EndTime "8:28:54 PDT"]
[Termination "picturesquecheck won by resignation"]

1. e4 {[%clk 0:02:49.6]} 1... c5 {[%clk 0:02:59.9]} 2. Nf3 {[%clk 0:02:49.5]}
2... e6 {[%clk 0:03:00]} 3. d4 {[%clk 0:02:48.2]} 3... cxd4 {[%clk 0:02:59.9]}
4. Nxd4 {[%clk 0:02:49.1]} 4... a6 {[%clk 0:02:59.8]} 5. Be2 {[%clk 0:02:48.6]}
5... Qc7 {[%clk 0:02:59.5]} 6. O-O {[%clk 0:02:48.8]} 6... Nf6 {[%clk
0:02:59.4]} 7. Nc3 {[%clk 0:02:47.9]} 7... Nc6 {[%clk 0:02:58.9]} 8. Be3 {[%clk
0:02:47.8]} 8... b5 {[%clk 0:02:53.8]} 9. a3 {[%clk 0:02:43.9]} 9... Bb7 {[%clk
0:02:51.5]} 10. f4 {[%clk 0:02:38]} 10... d6 {[%clk 0:02:50.7]} 11. Kh1 {[%clk
0:02:32.2]} 11... Be7 {[%clk 0:02:49.5]} 12. Bf3 {[%clk 0:02:30.4]} 12... O-O
{[%clk 0:02:45.8]} 13. Nxc6 {[%clk 0:02:28.6]} 13... Bxc6 {[%clk 0:02:45.2]} 14.
Qd3 {[%clk 0:02:27]} 14... Rac8 {[%clk 0:02:32.9]} 15. Rae1 {[%clk 0:02:26.2]}
15... Rfd8 {[%clk 0:02:28]} 16. Qe2 {[%clk 0:02:19.4]} 16... Qb7 {[%clk
0:02:26]} 17. Bd4 {[%clk 0:02:15.5]} 17... e5 {[%clk 0:02:21.4]} 18. fxe5 {[%clk
0:02:09.5]} 18... dxe5 {[%clk 0:02:20.2]} 19. Bxe5 {[%clk 0:02:04.2]} 19... b4
{[%clk 0:02:17.5]} 20. axb4 {[%clk 0:01:58.8]} 20... Qxb4 {[%clk 0:02:16]} 21.
Nd5 {[%clk 0:01:36.6]} 21... Nxd5 {[%clk 0:02:08.2]} 22. exd5 {[%clk 0:01:35.9]}
22... Bb5 {[%clk 0:02:07]} 23. Qf2 {[%clk 0:01:12.8]} 23... Bxf1 {[%clk
0:02:04.4]} 24. Rxf1 {[%clk 0:01:09.3]} 24... Qc4 {[%clk 0:01:54.8]} 25. Bg4
{[%clk 0:00:52.9]} 25... Qxd5 {[%clk 0:01:49.5]} 26. Bxc8 {[%clk 0:00:49.3]}
26... Rxc8 {[%clk 0:01:45.4]} 27. Bc3 {[%clk 0:00:49]} 27... Rf8 {[%clk
0:01:40]} 28. Qg3 {[%clk 0:00:44.5]} 28... f6 {[%clk 0:01:28.5]} 29. h3 {[%clk
0:00:43.7]} 29... Bd6 {[%clk 0:01:26.2]} 30. Qg4 {[%clk 0:00:36.3]} 30... Qb5
{[%clk 0:01:14.9]} 31. Rd1 {[%clk 0:00:34.3]} 31... Be5 {[%clk 0:01:09.8]} 32.
Qe6+ {[%clk 0:00:31.7]} 32... Kh8 {[%clk 0:01:09.4]} 33. Bxe5 {[%clk 0:00:31.8]}
33... fxe5 {[%clk 0:01:07.1]} 34. Kh2 {[%clk 0:00:27.4]} 34... Qe2 {[%clk
0:01:01.7]} 35. Qf7 {[%clk 0:00:23.2]} 35... Rg8 {[%clk 0:00:57.5]} 36. Rd6
{[%clk 0:00:21.6]} 36... e4 {[%clk 0:00:48.8]} 37. Re6 {[%clk 0:00:21.2]} 37...
Qxc2 {[%clk 0:00:46.7]} 38. Re8 {[%clk 0:00:20.3]} 38... Qc7+ {[%clk 0:00:38.5]}
39. Qxc7 {[%clk 0:00:19.6]} 39... Rxe8 {[%clk 0:00:38.6]} 40. Qc6 {[%clk
0:00:19.8]} 40... Rg8 {[%clk 0:00:35.6]} 41. Qxa6 {[%clk 0:00:19.7]} 41... h6
{[%clk 0:00:28.8]} 42. Qe2 {[%clk 0:00:20.6]} 42... Re8 {[%clk 0:00:28]} 43. Kg3
{[%clk 0:00:21.1]} 43... Kg8 {[%clk 0:00:28.1]} 44. b4 {[%clk 0:00:21.6]} 44...
Kf7 {[%clk 0:00:27.5]} 45. b5 {[%clk 0:00:21.5]} 45... Kf6 {[%clk 0:00:27.5]}
46. b6 {[%clk 0:00:21.6]} 46... Ke5 {[%clk 0:00:26.9]} 47. b7 {[%clk 0:00:22.1]}
47... Kd4 {[%clk 0:00:26.5]} 48. Qb2+ {[%clk 0:00:21.2]} 48... Kd3 {[%clk
0:00:25.7]} 49. b8=Q {[%clk 0:00:21.2]} 49... Rxb8 {[%clk 0:00:25.8]} 50. Qxb8
{[%clk 0:00:22.1]} 1-0